bitfinex/quotes_SOLUSD_20240606
["timestamp","ask_amount","ask_price","bid_price","bid_amount"]
[1717648812466,2.1328,173.48,173.43,2.1334]
[1717648812467,2.1325,173.5,173.47,5.69]
[1717648813077,2.1327,173.49,173.46,5.69]
[1717648813292,2.1327,173.49,173.45,5.69]
[1717648813790,0.17,173.48,173.45,5.69]
[1717648814780,0.17,173.48,173.46,5.69]
[1717648815396,0.17,173.49,173.46,5.69]
[1717648815694,2.1326,173.5,173.46,7.823]
[1717648816208,2.1326,173.5,173.47,5.69]
[1717648817885,2.1326,173.5,173.45,2.1331]
[1717648818106,2.1326,173.5,173.47,5.69]
[1717648818796,2.3025,173.51,173.47,5.69]
[1717648818992,2.1325,173.5,173.47,5.69]
[1717648819179,0.17,173.49,173.47,5.69]
[1717648819392,0.17,173.5,173.47,5.69]
[1717648819798,0.17,173.5,173.46,5.69]
[1717648820301,2.1327,173.49,173.44,2.1332]
[1717648820476,0.17,173.48,173.45,5.69]
[1717648821006,0.17,173.48,173.44,2.1332]
[1717648821301,0.17,173.48,173.45,7.8231]
[1717648824781,0.17,173.48,173.45,2.1331]
[1717648824989,2.3028,173.48,173.44,2.1332]
[1717648825199,2.3028,173.48,173.44,7.8232]
[1717648825713,2.3028,173.48,173.44,2.1332]
[1717648830679,0.17,173.48,173.44,2.1332]
[1717648830886,0.34,173.48,173.44,2.1332]
[1717648832720,2.4728,173.48,173.44,2.1332]
[1717648833005,8.1628,173.48,173.44,2.1332]
[1717648835423,2.4728,173.48,173.44,2.1332]
[1717648838496,0.34,173.48,173.44,2.1332]
[1717648839708,2.4728,173.48,173.44,2.1332]
[1717648840217,2.4728,173.48,173.43,5.69]
[1717648840218,2.1329,173.47,173.43,2.1333]
[1717648840422,0.17,173.46,173.43,7.8233]
[1717648840622,0.17,173.47,173.44,2.1332]
[1717648840815,0.17,173.47,173.43,5.69]
[1717648841116,0.17,173.47,173.43,7.8233]
[1717648842623,2.3029,173.47,173.43,5.69]
[1717648842827,0.17,173.46,173.43,5.69]
[1717648843506,0.17,173.46,173.42,2.1334]
[1717648843833,0.17,173.46,173.43,7.8234]
[1717648846503,0.34,173.47,173.43,7.8234]
[1717648847334,2.4729,173.47,173.43,7.8234]
[1717648847522,0.34,173.47,173.43,5.69]
[1717648847729,0.17,173.46,173.43,5.69]
[1717648847914,0.34,173.46,173.43,5.69]
[1717648849558,0.34,173.46,173.44,5.69]
[1717648853069,0.34,173.46,173.43,5.69]
[1717648853371,2.473,173.46,173.43,5.69]
[1717648854341,0.34,173.46,173.43,5.69]
[1717648854758,2.473,173.46,173.43,5.69]
[1717648855868,2.473,173.46,173.42,5.69]
[1717648857157,2.1332,173.45,173.4,2.1337]
[1717648857360,2.1332,173.45,173.42,5.69]
[1717648857956,2.4731,173.46,173.42,5.69]
[1717648858162,2.4731,173.46,173.41,7.8236]
[1717648858767,2.4731,173.46,173.41,2.1336]
[1717648858968,2.1333,173.44,173.37,10.6705]
[1717648859145,0.17,173.43,173.4,5.69]
[1717648859765,0.17,173.43,173.4,7.8237]
[1717648860270,0.17,173.43,173.4,2.1337]
[1717648860453,0.17,173.43,173.4,5.69]
[1717648861051,0.17,173.43,173.36,8.537]
[1717648861368,0.17,173.43,173.36,2.1342]
[1717648861369,2.1337,173.41,173.36,2.1342]
[1717648861564,2.1337,173.41,173.38,5.69]
[1717648862549,2.3036,173.42,173.38,5.69]
[1717648862752,0.17,173.41,173.38,5.69]
[1717648863150,0.17,173.41,173.37,2.1341]
[1717648863350,0.17,173.41,173.38,5.69]
[1717648863748,0.17,173.41,173.37,2.1341]
[1717648864160,0.17,173.41,173.38,5.69]
[1717648865666,0.17,173.41,173.37,5.69]
[1717648865667,2.3037,173.41,173.37,5.69]
[1717648870573,2.1337,173.4,173.37,5.69]
[1717648874677,2.1337,173.4,173.35,2.1343]
[1717648874872,0.17,173.39,173.35,2.1343]
[1717648875070,0.17,173.4,173.36,7.8242]
[1717648875276,2.3038,173.4,173.37,5.69]
[1717648875472,0.17,173.39,173.37,5.69]
[1717648876366,0.17,173.39,173.35,2.1343]
[1717648876571,0.17,173.39,173.37,5.69]
[1717648876766,0.17,173.39,173.36,5.69]
[1717648878281,0.17,173.39,173.37,5.69]
[1717648879872,2.3039,173.39,173.37,5.69]
[1717648881268,0.17,173.39,173.37,5.69]
[1717648881467,0.17,173.39,173.35,2.1343]
[1717648881668,0.17,173.39,173.36,5.69]
[1717648882096,2.3039,173.39,173.36,5.69]
[1717648884894,0.17,173.39,173.36,5.69]
[1717648886791,0.17,173.39,173.35,2.1343]
[1717648886995,0.17,173.39,173.36,5.69]
[1717648889094,2.3039,173.39,173.35,2.1343]
[1717648889294,2.3039,173.39,173.35,7.8243]
[1717648889593,0.17,173.39,173.35,7.8243]
[1717648889898,0.17,173.39,173.36,5.69]
[1717648891293,0.17,173.39,173.35,2.1343]
[1717648891493,0.17,173.39,173.36,5.69]
[1717648892994,0.17,173.39,173.35,7.8243]
[1717648893704,0.17,173.39,173.35,2.1343]
[1717648893900,0.17,173.39,173.35,7.8243]
[1717648899291,0.17,173.39,173.35,2.1343]
[1717648899604,0.17,173.39,173.35,7.8243]
[1717648905378,2.3039,173.39,173.35,7.8243]
[1717648905608,0.17,173.38,173.35,5.69]
[1717648907395,0.17,173.38,173.34,7.8244]
[1717648908502,0.17,173.38,173.3,4.2698]
[1717648908689,2.1343,173.36,173.31,2.1348]
[1717648908899,0.34,173.35,173.31,5.69]
[1717648909096,2.4744,173.35,173.3,7.8249]
[1717648909313,47.4744,173.35,173.3,7.8249]
[1717648910005,47.4744,173.35,173.3,5.69]
[1717648910596,47.4744,173.35,173.29,2.135]
[1717648910907,47.4744,173.35,173.3,5.69]
[1717648912711,47.4744,173.35,173.3,7.825]
[1717648913796,47.4744,173.35,173.29,2.135]
[1717648914028,2.1345,173.34,173.29,2.135]
[1717648914238,0.34,173.33,173.3,5.69]
[1717648915300,0.34,173.33,173.29,2.135]
[1717648915595,0.34,173.33,173.3,5.69]
[1717648915792,0.34,173.33,173.25,6.5084]
[1717648915999,0.34,173.34,173.27,2.1353]
[1717648916198,2.1349,173.31,173.25,6.5084]
[1717648916422,26.7436,173.34,173.28,5.69]
[1717648916423,2.1348,173.32,173.28,5.69]
[1717648916634,2.1348,173.32,173.29,5.69]
[1717648917331,2.1347,173.33,173.29,5.69]
[1717648917630,0.34,173.32,173.29,5.69]
[1717648918521,0.34,173.32,173.27,2.1353]
[1717648918709,0.34,173.32,173.28,7.8252]
[1717648918908,0.17,173.32,173.3,5.69]
[1717648919127,0.17,173.33,173.3,5.69]
[1717648921805,2.3046,173.33,173.3,5.69]
[1717648923713,2.3046,173.33,173.28,2.1351]
[1717648943744,0.17,173.33,173.28,2.1351]
[1717648949636,2.3046,173.33,173.28,2.1351]
[1717648950751,0.17,173.33,173.28,2.1351]
[1717648951347,2.3046,173.33,173.28,2.1351]
[1717648952954,0.17,173.33,173.28,2.1351]
[1717648953856,2.3046,173.33,173.28,2.1351]
[1717648954060,0.17,173.33,173.28,2.1351]
[1717648954258,0.17,173.33,173.29,2.1351]
[1717648955061,0.17,173.33,173.28,2.1352]
[1717648961161,2.3046,173.33,173.28,2.1352]
[1717648961567,0.17,173.33,173.28,2.1352]
[1717648961769,2.3046,173.33,173.28,2.1352]
[1717648962857,2.3046,173.33,173.29,5.69]
[1717648963667,2.3046,173.33,173.28,2.1352]
[1717648963869,0.17,173.33,173.28,2.1352]
[1717648965946,0.17,173.33,173.27,2.1353]
[1717648965947,6.7544,173.33,173.27,2.1353]
[1717648966162,8.8892,173.32,173.27,7.8253]
[1717648966451,0.17,173.31,173.27,7.8253]
[1717648967265,0.17,173.31,173.28,2.1352]
[1717648967848,0.17,173.31,173.28,7.8252]
[1717648968567,0.17,173.31,173.27,2.1353]
[1717648968769,0.17,173.31,173.28,5.69]
[1717648970947,0.17,173.31,173.27,2.1353]
[1717648971142,0.17,173.31,173.28,5.69]
[1717648974356,0.17,173.31,173.27,2.1353]
[1717648974559,0.17,173.31,173.28,5.69]
[1717648979379,0.17,173.31,173.27,2.1353]
[1717648979672,0.17,173.31,173.28,5.69]
[1717648980859,0.17,173.31,173.28,7.8252]
[1717648981173,0.34,173.32,173.28,7.8252]
[1717648982081,0.34,173.32,173.28,5.69]
[1717648985065,2.4747,173.32,173.28,5.69]
[1717648986085,0.34,173.32,173.28,5.69]
[1717648992501,0.34,173.32,173.28,7.8252]
[1717648993066,2.4747,173.32,173.28,5.69]
[1717648995578,0.34,173.32,173.28,5.69]
[1717648996069,0.34,173.32,173.28,7.8252]
[1717648997081,0.34,173.32,173.28,5.69]
[1717648997389,2.4747,173.32,173.28,5.69]
[1717648998786,0.34,173.32,173.28,5.69]
[1717648999484,2.4747,173.32,173.28,5.69]
[1717649000795,22.1347,173.33,173.29,5.69]
[1717649001093,22.1347,173.33,173.3,5.69]
[1717649001268,2.1347,173.33,173.3,5.69]
[1717649005885,2.1347,173.32,173.3,5.69]
[1717649006072,2.1347,173.32,173.29,5.69]
[1717649006800,2.1347,173.33,173.29,5.69]
[1717649009073,2.1342,173.37,173.32,7.8247]
[1717649009381,2.1341,173.37,173.35,5.69]
[1717649011697,22.304,173.38,173.35,5.69]
[1717649011997,0.17,173.37,173.35,5.69]
[1717649014413,0.17,173.37,173.36,5.69]
[1717649014784,0.17,173.39,173.36,5.69]
[1717649015013,0.17,173.39,173.32,8.5389]
[1717649015014,0.17,173.39,173.37,5.69]
[1717649015216,0.17,173.39,173.38,5.69]
[1717649017508,2.1338,173.4,173.38,5.69]
[1717649017713,2.1336,173.42,173.38,5.69]
[1717649017909,2.3035,173.43,173.39,5.69]
[1717649018210,2.3035,173.42,173.4,5.69]
[1717649020408,22.3034,173.43,173.41,5.69]
[1717649020610,22.1334,173.43,173.41,5.69]
[1717649021212,2.1334,173.43,173.41,5.69]
[1717649022318,2.1335,173.42,173.41,5.69]
[1717649023210,2.1335,173.43,173.41,5.69]
[1717649024520,2.1335,173.43,173.42,5.69]
[1717649024717,2.3035,173.43,173.42,5.69]
[1717649025602,2.3035,173.43,173.41,5.69]
[1717649026026,2.1335,173.42,173.41,5.69]
[1717649026616,2.1335,173.42,173.38,2.134]
[1717649026932,2.1335,173.42,173.4,5.69]
[1717649027522,2.1336,173.41,173.4,5.69]
[1717649027733,2.3036,173.41,173.36,2.1342]
[1717649027912,2.3036,173.41,173.38,5.69]
[1717649028413,2.3036,173.41,173.37,5.69]
[1717649029628,2.3036,173.41,173.37,7.8241]
[1717649030225,0.17,173.41,173.37,7.8241]
[1717649032331,2.3036,173.41,173.37,7.8241]
[1717649032637,0.17,173.41,173.37,7.8241]
[1717649032829,2.3039,173.4,173.33,10.673]
[1717649033034,0.17,173.39,173.36,5.69]
[1717649033212,0.17,173.39,173.35,2.1343]
[1717649033213,2.3039,173.39,173.35,5.69]
[1717649034241,2.3039,173.39,173.35,7.8244]
[1717649036729,0.17,173.38,173.35,7.8244]
[1717649038227,0.34,173.39,173.35,7.8244]
[1717649039331,2.4739,173.39,173.35,7.8244]
[1717649040150,2.4739,173.39,173.35,2.1344]
[1717649040330,0.34,173.39,173.35,7.8244]
[1717649040821,0.34,173.39,173.35,2.1344]
[1717649041023,0.34,173.39,173.35,7.8244]
[1717649041538,2.4739,173.39,173.35,2.1344]
[1717649041747,2.4739,173.39,173.35,7.8244]
[1717649042148,0.34,173.39,173.35,7.8244]
[1717649043123,0.34,173.39,173.35,2.1344]
[1717649043328,0.34,173.39,173.35,7.8244]
[1717649044148,0.34,173.39,173.35,5.69]
[1717649044337,0.34,173.39,173.36,2.1342]
[1717649045643,0.34,173.39,173.36,7.8242]
[1717649045854,20.0,173.42,173.39,2.1338]
[1717649046056,2.1331,173.45,173.4,2.1337]
[1717649046221,2.1331,173.45,173.38,4.268]
[1717649046222,2.1331,173.46,173.41,7.8236]
[1717649046422,6.3186,173.47,173.43,7.8233]
[1717649046722,8.4515,173.47,173.43,5.69]
[1717649047637,0.17,173.46,173.43,5.69]
[1717649047819,20.34,173.46,173.43,5.69]
[1717649048026,22.473,173.46,173.43,5.69]
[1717649048224,20.34,173.46,173.43,5.69]
[1717649048428,0.34,173.46,173.43,5.69]
[1717649048943,20.34,173.46,173.43,5.69]
[1717649049825,20.34,173.46,173.42,2.1334]
[1717649050047,22.473,173.46,173.42,5.69]
[1717649053147,22.473,173.46,173.42,7.8235]
[1717649053748,20.34,173.46,173.42,7.8235]
[1717649054444,22.473,173.46,173.42,5.69]
[1717649055350,22.473,173.46,173.41,2.1335]
[1717649055758,22.473,173.46,173.42,5.69]
[1717649056252,22.473,173.46,173.41,7.8235]
[1717649058255,22.473,173.46,173.42,2.1335]
[1717649061244,20.34,173.46,173.41,2.1336]
[1717649061448,45.0,173.45,173.41,2.1336]
[1717649061655,0.34,173.44,173.41,2.1336]
[1717649073064,0.34,173.44,173.41,7.8236]
[1717649083866,0.34,173.44,173.42,7.8234]
[1717649084254,0.34,173.44,173.42,5.69]
[1717649084773,0.34,173.44,173.41,7.8236]
[1717649086578,0.17,173.44,173.43,2.1334]
[1717649086802,20.17,173.45,173.43,5.69]
[1717649086959,20.17,173.45,173.42,2.1334]
[1717649086960,0.17,173.45,173.44,5.69]
[1717649089973,0.17,173.46,173.44,5.69]
[1717649090177,0.34,173.47,173.45,5.69]
[1717649090365,20.34,173.47,173.45,5.69]
[1717649090566,0.34,173.47,173.45,5.69]
[1717649092183,0.34,173.47,173.4,4.2674]
[1717649092390,2.1331,173.46,173.43,5.69]
[1717649093289,22.1329,173.47,173.43,5.69]
[1717649093491,0.34,173.46,173.43,5.69]
[1717649095392,0.34,173.46,173.42,2.1335]
[1717649095586,0.34,173.46,173.43,5.69]
[1717649096872,0.34,173.46,173.43,7.8234]
[1717649098287,0.34,173.46,173.44,5.69]
[1717649100294,0.34,173.46,173.43,2.1334]
[1717649100502,0.34,173.46,173.43,5.69]
[1717649100694,0.34,173.46,173.44,5.69]
[1717649101285,0.34,173.46,173.43,5.69]
[1717649102497,0.34,173.46,173.43,7.8234]
[1717649103000,0.34,173.46,173.43,5.69]
[1717649103298,0.34,173.46,173.43,2.1334]
[1717649103477,0.34,173.46,173.43,7.8234]
[1717649104193,0.34,173.46,173.44,5.69]
[1717649104396,0.34,173.46,173.43,2.1334]
[1717649104578,0.34,173.46,173.41,2.1335]
[1717649104781,0.34,173.46,173.43,5.69]
[1717649105294,0.34,173.46,173.39,19.2048]
[1717649105295,2.4731,173.46,173.41,2.1336]
[1717649105690,2.4731,173.46,173.42,5.69]
[1717649106512,5.69,173.45,173.37,4.2681]
[1717649106715,2.1334,173.43,173.38,2.1339]
[1717649107011,0.34,173.42,173.38,7.8239]
[1717649108002,0.34,173.42,173.39,2.1338]
[1717649108180,0.17,173.42,173.4,7.8237]
[1717649108380,0.34,173.43,173.41,5.69]
[1717649108581,0.34,173.44,173.41,5.69]
[1717649109083,20.34,173.44,173.41,5.69]
[1717649109802,22.4733,173.44,173.41,5.69]
[1717649109998,22.4733,173.44,173.4,5.69]
[1717649112289,22.4733,173.44,173.4,7.8237]
[1717649112614,20.0,173.44,173.43,5.69]
[1717649113313,20.0,173.44,173.41,2.1336]
[1717649113604,2.1331,173.45,173.43,5.69]
[1717649113810,0.17,173.46,173.43,5.69]
[1717649114010,2.473,173.46,173.43,5.69]
[1717649114188,0.34,173.46,173.44,5.69]
[1717649114590,0.34,173.46,173.45,5.69]
[1717649114896,0.34,173.46,173.44,5.69]
[1717649115286,2.4729,173.47,173.45,5.69]
[1717649115691,0.34,173.47,173.45,5.69]
[1717649116188,22.4729,173.47,173.44,5.69]
[1717649117803,2.4729,173.47,173.44,5.69]
[1717649118414,22.4729,173.47,173.44,5.69]
[1717649118709,22.4729,173.47,173.42,2.1334]
[1717649118887,22.4729,173.47,173.44,5.69]
[1717649122618,2.133,173.46,173.44,5.69]
[1717649122821,2.133,173.46,173.41,2.1336]
[1717649123026,0.34,173.45,173.43,5.69]
[1717649123194,0.34,173.45,173.42,5.69]
[1717649123627,0.34,173.45,173.42,7.8235]
[1717649125000,0.34,173.46,173.42,7.8235]
[1717649125421,0.34,173.46,173.43,5.69]
[1717649128025,0.34,173.46,173.44,5.69]
[1717649132632,0.34,173.46,173.42,2.1334]
[1717649132827,0.34,173.46,173.44,5.69]
[1717649134436,2.1327,173.49,173.45,5.69]
[1717649134628,0.34,173.48,173.46,5.69]
[1717649136444,2.4728,173.48,173.46,5.69]
[1717649147229,0.34,173.48,173.46,5.69]
[1717649147622,2.4728,173.48,173.46,5.69]
[1717649148955,2.4728,173.48,173.45,5.69]
[1717649150524,0.34,173.48,173.47,5.69]
[1717649150728,2.1326,173.5,173.47,5.69]
[1717649150939,2.3024,173.51,173.48,5.69]
[1717649151149,2.1324,173.51,173.49,5.69]
[1717649152137,2.3023,173.52,173.49,5.69]
[1717649152325,2.1321,173.54,173.51,5.69]
[1717649153733,0.17,173.53,173.51,5.69]
[1717649154339,0.17,173.54,173.51,5.69]
[1717649154728,0.34,173.54,173.52,5.69]
[1717649157536,2.472,173.55,173.52,5.69]
[1717649157731,0.34,173.55,173.52,5.69]
[1717649157933,0.34,173.55,173.53,5.69]
[1717649159033,2.4719,173.55,173.53,5.69]
[1717649159555,24.2632,173.58,173.48,12.7069]
[1717649159556,4.2628,173.6,173.48,6.3087]
[1717649159757,4.2628,173.6,173.55,5.69]
[1717649159758,2.1316,173.58,173.55,5.69]
[1717649160440,2.1316,173.58,173.51,10.6619]
[1717649160636,2.1316,173.58,173.55,5.69]
[1717649161156,0.17,173.57,173.55,5.69]
[1717649161455,0.17,173.57,173.56,5.69]
[1717649165845,0.17,173.57,173.55,5.69]
[1717649168878,0.34,173.58,173.55,5.69]
[1717649169040,2.3015,173.58,173.55,5.69]
[1717649170870,4.64567858,173.64,173.56,23.7217]
[1717649171071,22.76,173.7,173.55,5.69]
[1717649171072,45.471,173.7,173.55,6.0016]
[1717649171370,2.1309,173.64,173.59,2.1313]
[1717649171546,2.1309,173.64,173.6,2.1312]
[1717649172070,4.2612,173.66,173.59,5.69]
[1717649172071,2.131,173.63,173.59,5.69]
[1717649172246,0.34,173.62,173.59,2.1313]
[1717649175257,2.4711,173.62,173.58,2.1315]
[1717649175969,0.34,173.62,173.59,2.1314]
[1717649176171,0.34,173.62,173.57,5.69]
[1717649176172,0.34,173.62,173.6,2.1313]
[1717649176376,0.34,173.62,173.6,7.8213]
[1717649180077,0.34,173.62,173.61,2.1312]
[1717649180278,22.1307,173.65,173.61,7.8212]
[1717649180585,0.34,173.64,173.61,7.8212]
[1717649182165,2.4708,173.64,173.61,5.69]
[1717649184384,0.34,173.64,173.62,7.8209]
[1717649184978,0.34,173.65,173.62,7.8209]
[1717649185177,0.34,173.65,173.63,5.69]
[1717649189089,2.4707,173.65,173.62,7.8209]
[1717649189790,2.4707,173.65,173.62,5.69]
[1717649191273,2.4707,173.65,173.6,2.1312]
[1717649191274,2.1308,173.64,173.6,2.1312]
[1717649191578,0.17,173.63,173.6,7.8212]
[1717649191794,0.34,173.63,173.6,7.8212]
[1717649191965,0.34,173.63,173.61,2.1312]
[1717649192171,0.17,173.63,173.59,10.6571]
[1717649192469,0.34,173.64,173.61,2.1311]
[1717649192784,0.34,173.64,173.61,7.8211]
[1717649193092,0.34,173.64,173.62,2.131]
[1717649195778,0.17,173.63,173.62,2.131]
[1717649196181,0.17,173.63,173.62,7.821]
[1717649197891,0.17,173.65,173.62,7.821]
[1717649198073,0.17,173.65,173.61,4.2624]
[1717649198074,0.17,173.65,173.63,7.8209]
[1717649198389,0.17,173.66,173.63,7.8209]
[1717649198584,2.3006,173.66,173.63,7.8209]
[1717649199076,0.17,173.66,173.65,7.8207]
[1717649199273,0.34,173.66,173.64,7.8207]
[1717649199786,0.17,173.65,173.64,5.69]
[1717649203614,0.17,173.67,173.64,5.69]
[1717649203780,0.34,173.67,173.64,5.69]
[1717649204113,0.34,173.67,173.64,7.8208]
[1717649205329,0.34,173.67,173.64,5.69]
[1717649207202,0.34,173.67,173.64,7.8208]
[1717649215215,0.34,173.67,173.64,2.1308]
[1717649215395,0.34,173.67,173.64,7.8208]
[1717649217406,0.34,173.67,173.65,5.69]
[1717649217605,0.34,173.67,173.66,7.8206]
[1717649225027,0.34,173.67,173.66,26.996]
[1717649225214,2.9493034,173.72,173.68,2.1302]
[1717649225400,0.34,173.71,173.69,5.69]
[1717649225722,0.34,173.71,173.68,7.8202]
[1717649226207,2.47,173.71,173.68,5.69]
[1717649226404,67.47,173.71,173.67,2.1304]
[1717649226605,67.47,173.71,173.68,5.69]
[1717649230225,67.47,173.71,173.67,2.1304]
[1717649230437,67.47,173.71,173.67,7.8204]
[1717649235346,65.34,173.71,173.67,7.8204]
[1717649235531,67.47,173.71,173.67,7.8204]
[1717649238630,67.47,173.71,173.67,5.69]
[1717649239137,67.47,173.71,173.67,7.8204]
[1717649244418,67.47,173.71,173.68,5.69]
[1717649248038,67.47,173.71,173.67,2.1304]
[1717649248223,67.47,173.71,173.68,5.69]
[1717649252041,69.5999,173.71,173.63,10.6779]
[1717649252341,2.1305,173.67,173.62,2.131]
[1717649252648,2.3004,173.68,173.63,2.1309]
[1717649252946,0.34,173.67,173.63,2.1309]
[1717649253244,0.34,173.67,173.6,19.29547048]
[1717649253245,0.34,173.67,173.64,7.8208]
[1717649253418,0.34,173.68,173.64,7.8208]
[1717649253619,0.34,173.68,173.64,2.1308]
[1717649253932,0.34,173.68,173.64,7.8208]
[1717649254771,0.34,173.68,173.65,2.1307]
[1717649255344,0.34,173.68,173.66,2.1305]
[1717649256759,0.34,173.68,173.65,7.8206]
[1717649257957,0.34,173.68,173.65,2.1306]
[1717649258157,0.34,173.68,173.65,7.8206]
[1717649261066,0.34,173.68,173.65,2.1306]
[1717649261361,0.34,173.68,173.65,7.8206]
[1717649262158,0.34,173.68,173.65,2.1306]
[1717649262359,0.34,173.68,173.65,7.8206]
[1717649262964,0.34,173.68,173.65,2.1306]
[1717649263151,0.34,173.68,173.65,7.8206]
[1717649263965,0.34,173.68,173.65,2.1306]
[1717649264354,0.34,173.68,173.65,7.8206]
[1717649265063,0.34,173.68,173.65,2.1306]
[1717649265244,0.34,173.68,173.66,2.1305]
[1717649266353,0.34,173.68,173.64,8.63959964]
[1717649266663,0.34,173.68,173.65,7.8207]
[1717649268769,0.34,173.68,173.65,2.1307]
[1717649268971,0.34,173.68,173.65,7.8207]
[1717649269165,0.34,173.68,173.65,5.69]
[1717649269347,0.34,173.68,173.65,14.32961832]
[1717649269555,0.34,173.68,173.65,8.63961832]
[1717649270849,2.4703,173.68,173.65,8.63961832]
[1717649271164,2.1304,173.67,173.63,8.63961832]
[1717649271472,0.34,173.66,173.64,8.63961832]
[1717649273757,0.34,173.66,173.63,8.63961832]
[1717649274269,28.1606,173.66,173.62,8.63961832]
[1717649274469,45.0,173.65,173.62,8.63961832]
[1717649274773,0.34,173.64,173.62,8.63961832]
[1717649275275,0.34,173.64,173.61,2.1312]
[1717649275452,0.34,173.64,173.62,8.64158756]
[1717649275654,0.34,173.64,173.61,10.77278756]
[1717649276158,0.34,173.64,173.62,2.131]
[1717649277477,0.34,173.64,173.62,7.821]
[1717649277860,0.34,173.64,173.63,5.69]
[1717649278976,2.1305,173.67,173.63,5.69]
[1717649279150,0.34,173.66,173.64,5.69]
[1717649279774,0.17,173.66,173.64,5.69]
[1717649279964,2.1302,173.69,173.65,5.69]
[1717649280171,22.1301,173.7,173.66,5.69]
[1717649281073,2.1302,173.69,173.66,5.69]
[1717649281272,0.34,173.68,173.66,5.69]
[1717649281778,20.34,173.68,173.66,5.69]
[1717649282155,0.8195034,173.72,173.66,10.77208756]
[1717649282375,2.13,173.71,173.68,5.69]
[1717649283780,0.34,173.7,173.68,5.69]
[1717649284078,20.34,173.7,173.68,5.69]
[1717649284662,22.4701,173.7,173.68,5.69]
[1717649285984,22.4701,173.7,173.67,5.69]
[1717649286171,22.4701,173.7,173.66,14.33158756]
[1717649286771,20.34,173.7,173.66,16.46208756]
[1717649286957,0.34,173.7,173.67,7.8204]
[1717649287554,0.34,173.7,173.67,5.69]
[1717649289881,2.4701,173.7,173.66,10.77208756]
[1717649290089,2.4701,173.7,173.67,5.69]
[1717649290891,0.34,173.7,173.67,5.69]
[1717649291581,0.34,173.7,173.66,10.77208756]
[1717649291881,0.34,173.7,173.67,5.69]
[1717649293085,0.34,173.7,173.67,7.8203]
[1717649293289,0.34,173.7,173.68,2.1303]
[1717649293793,0.34,173.7,173.67,7.8203]
[1717649295689,0.34,173.7,173.68,5.69]
[1717649295893,0.34,173.71,173.69,5.69]
[1717649296387,0.34,173.71,173.7,5.69]
[1717649296785,0.34,173.71,173.69,7.8202]
[1717649296987,0.34,173.71,173.7,5.69]